fUSD/lending_fUSD_20260616
["ID","MTS","AMOUNT","RATE_DAILY","PERIOD"]
[425139178,1781548245000,-321.03275511,0.00013823,2]
[425139182,1781548245000,-150.0,0.0001383,2]
[425139179,1781548245000,-250.40554899,0.00013823,2]
[425139180,1781548245000,-150.0,0.00013824,2]
[425139176,1781548245000,-8562.6,0.00013814,2]
[425139181,1781548245000,-308.13,0.00013829,2]
[425139193,1781548245000,-250.40554899,0.00013868,2]
[425139187,1781548245000,-250.40554899,0.00013838,2]
[425139186,1781548245000,-321.03275511,0.00013838,2]
[425139192,1781548245000,-321.03275511,0.00013868,2]
[425139188,1781548245000,-150.0,0.00013841,2]
[425139189,1781548245000,-150.0,0.00013841,2]
[425139194,1781548245000,-150.0,0.0001387,2]
[425139196,1781548245000,-350.0,0.00013871,2]
[425139185,1781548245000,-150.0,0.00013835,2]
[425139190,1781548245000,-150.0,0.00013846,2]
[425139183,1781548245000,-150.0,0.0001383,2]
[425139173,1781548245000,-150.0,0.00013808,2]
[425139151,1781548245000,-150.0,0.00013742,2]
[425139172,1781548245000,-150.0,0.00013808,2]
[425139191,1781548245000,-321.03275511,0.00013853,2]
[425139157,1781548245000,-250.40554899,0.00013763,2]
[425139152,1781548245000,-321.03275511,0.00013748,2]
[425139158,1781548245000,-150.0,0.00013765,2]
[425139155,1781548245000,-150.0,0.00013759,2]
[425139159,1781548245000,-150.0,0.00013765,2]
[425139154,1781548245000,-150.0,0.00013755,2]
[425139161,1781548245000,-150.0,0.00013775,2]
[425139153,1781548245000,-250.40554899,0.00013748,2]
[425139171,1781548245000,-150.0,0.00013808,2]
[425139160,1781548245000,-150.0,0.0001377,2]
[425139162,1781548245000,-150.0,0.00013775,2]
[425139165,1781548245000,-250.40554899,0.00013778,2]
[425139164,1781548245000,-321.03275511,0.00013778,2]
[425139168,1781548245000,-150.0,0.00013796,2]
[425139163,1781548245000,-150.0,0.00013777,2]
[425139167,1781548245000,-150.0,0.00013795,2]
[425139170,1781548245000,-2000.0,0.00013804,2]
[425139166,1781548245000,-321.03275511,0.00013793,2]
[425139169,1781548245000,-150.0,0.00013797,2]
[425139156,1781548245000,-321.03275511,0.00013763,2]
[425139195,1781548245000,-150.0,0.0001387,2]
[425139198,1781548245000,-150.0,0.00013874,2]
[425139197,1781548245000,-150.0,0.00013874,2]
[425139230,1781548245000,-150.0,0.00013958,2]
[425139222,1781548245000,-150.0,0.0001394,2]
[425139223,1781548245000,-150.0,0.0001394,2]
[425139225,1781548245000,-150.0,0.00013944,2]
[425139227,1781548245000,-150.0,0.00013955,2]
[425139226,1781548245000,-150.0,0.00013949,2]
[425139224,1781548245000,-321.03275511,0.00013943,2]
[425139228,1781548245000,-321.03275511,0.00013958,2]
[425139232,1781548245000,-150.0,0.00013962,2]
[425139220,1781548245000,-150.0,0.00013926,2]
[425139231,1781548245000,-150.0,0.0001396,2]
[425139240,1781548245000,-29513.92260977,0.0001399,2]
[425139237,1781548245000,-308.13,0.00013983,2]
[425139242,1781548245000,-150.0,0.00013995,2]
[425139234,1781548245000,-8562.6,0.00013968,2]
[425139241,1781548245000,-150.0,0.0001399,2]
[425139239,1781548245000,-300.0,0.00013989,2]
[425139235,1781548245000,-150.0,0.00013973,2]
[425139236,1781548245000,-321.03275511,0.00013973,2]
[425139243,1781548245000,-150.0,0.00013998,2]
[425139238,1781548245000,-321.03275511,0.00013988,2]
[425139221,1781548245000,-321.03275511,0.00013928,2]
[425139233,1781548245000,-500.0,0.00013965,2]
[425139229,1781548245000,-150.0,0.00013958,2]
[425139219,1781548245000,-150.0,0.00013922,2]
[425139201,1781548245000,-250.40554899,0.00013883,2]
[425139199,1781548245000,-150.0,0.00013875,2]
[425139202,1781548245000,-150.0,0.00013884,2]
[425139207,1781548245000,-350.0,0.00013897,2]
[425139203,1781548245000,-405.52,0.00013888,2]
[425139204,1781548245000,-150.0,0.00013894,2]
[425139205,1781548245000,-150.0,0.00013894,2]
[425139206,1781548245000,-8562.6,0.00013896,2]
[425139208,1781548245000,-321.03275511,0.00013898,2]
[425139200,1781548245000,-321.03275511,0.00013883,2]
[425139211,1781548245000,-150.0,0.00013907,2]
[425139212,1781548245000,-150.0,0.00013907,2]
[425139217,1781548245000,-150.0,0.00013916,2]
[425139209,1781548245000,-250.40554899,0.00013898,2]
[425139215,1781548245000,-250.40554899,0.00013913,2]
[425139216,1781548245000,-150.0,0.00013915,2]
[425139213,1781548245000,-308.13,0.0001391,2]
[425139210,1781548245000,-150.0,0.00013907,2]
[425139214,1781548245000,-321.03275511,0.00013913,2]
[425139218,1781548245000,-305.02,0.00013919,2]
[425139282,1781548246000,-150.0,0.00014155,2]
[425139280,1781548246000,-150.0,0.00014151,2]
[425139281,1781548246000,-321.03275511,0.00014152,2]
[425139279,1781548246000,-8562.6,0.00014149,2]
[425139278,1781548246000,-300.0,0.00014148,2]
[425139269,1781548246000,-8562.6,0.00014093,2]
[425139274,1781548246000,-150.0,0.00014119,2]
[425139272,1781548246000,-308.13,0.00014108,2]
[425139271,1781548246000,-321.03275511,0.00014107,2]
[425139270,1781548246000,-150.0,0.00014104,2]
[425139289,1781548246000,-150.0,0.00014183,2]
[425139283,1781548246000,-150.0,0.0001416,2]
[425139294,1781548246000,-321.03275511,0.00014212,2]
[425139284,1781548246000,-308.13,0.00014164,2]
[425139286,1781548246000,-321.03275511,0.00014167,2]
[425139285,1781548246000,-150.0,0.00014166,2]
[425139287,1781548246000,-305.02,0.00014179,2]
[425139291,1781548246000,-321.03275511,0.00014197,2]
[425139292,1781548246000,-8562.6,0.00014201,2]
[425139296,1781548246000,-150.0,0.00014216,2]
[425139290,1781548246000,-150.0,0.00014195,2]
[425139297,1781548246000,-308.13,0.00014216,2]
[425139293,1781548246000,-150.0,0.00014203,2]
[425139273,1781548246000,-150.0,0.00014115,2]
[425139288,1781548246000,-321.03275511,0.00014182,2]
[425139275,1781548246000,-150.0,0.00014129,2]
[425139247,1781548246000,-150.0,0.00014005,2]
[425139276,1781548246000,-321.03275511,0.00014137,2]
[425139245,1781548246000,-321.03275511,0.00014002,2]
[425139244,1781548246000,-250.0,0.00014,2]
[425139246,1781548246000,-150.0,0.00014005,2]
[425139255,1781548246000,-150.0,0.00014035,2]
[425139248,1781548246000,-150.0,0.00014009,2]
[425139295,1781548246000,-153.42,0.00014214,2]
[425139249,1781548246000,-321.03275511,0.00014017,2]
[425139253,1781548246000,-321.03275511,0.00014032,2]
[425139251,1781548246000,-300.0,0.00014032,2]
[425139252,1781548246000,-671.15011359,0.00014032,2]
[425139250,1781548246000,-150.0,0.00014018,2]
[425139254,1781548246000,-8562.6,0.00014033,2]
[425139256,1781548246000,-150.0,0.00014038,2]
[425139258,1781548246000,-150.0,0.00014055,2]
[425139259,1781548246000,-150.0,0.00014055,2]
[425139257,1781548246000,-308.13,0.00014048,2]
[425139260,1781548246000,-321.03275511,0.00014062,2]
[425139263,1781548246000,-321.03275511,0.00014077,2]
[425139262,1781548246000,-150.0,0.00014075,2]
[425139261,1781548246000,-150.0,0.00014071,2]
[425139264,1781548246000,-150.0,0.00014087,2]
[425139266,1781548246000,-150.0,0.00014092,2]
[425139265,1781548246000,-151.0,0.0001409,2]
[425139267,1781548246000,-300.0,0.00014092,2]
[425139268,1781548246000,-321.03275511,0.00014092,2]
[425139277,1781548246000,-250.40554899,0.00014137,2]
[425139298,1781548246000,-8152.88169685,0.00014221,2]
[425139340,1781548246000,-350.0,0.00014606,2]
[425139308,1781548246000,-321.03275511,0.00014271,2]
[425139332,1781548246000,-636.59460219,0.0001455,2]
[425139330,1781548246000,-8562.6,0.00014544,2]
[425139329,1781548246000,-308.13,0.00014521,2]
[425139333,1781548246000,-2129.0,0.00014554,2]
[425139334,1781548246000,-308.13,0.00014559,2]
[425139343,1781548246000,-308.13,0.00014631,2]
[425139345,1781548246000,-1493.1,0.00014661,2]
[425139342,1781548246000,-321.03275511,0.0001463,2]
[425139344,1781548246000,-8562.6,0.0001465,2]
[425139335,1781548246000,-8562.6,0.0001458,2]
[425139346,1781548246000,-308.13,0.00014666,2]
[425139336,1781548246000,-150.0,0.00014583,2]
[425139337,1781548246000,-321.03275511,0.00014585,2]
[425139339,1781548246000,-321.03275511,0.000146,2]
[425139341,1781548246000,-8562.6,0.00014616,2]
[425139351,1781548246000,-305.04,0.00014708,2]
[425139348,1781548246000,-305.02,0.00014693,2]
[425139354,1781548246000,-150.29951086,0.00014795,2]
[425139347,1781548246000,-8562.6,0.00014684,2]
[425139353,1781548246000,-500.0,0.00014787,2]
[425139349,1781548246000,-308.13,0.00014699,2]
[425139352,1781548246000,-439.0,0.00014776,2]
[425139350,1781548246000,-308.27,0.000147,2]
[425139355,1781548246000,-152.39496405,0.00014795,2]
[425139299,1781548246000,-321.03275511,0.00014227,2]
[425139331,1781548246000,-305.02,0.00014545,2]
[425139327,1781548246000,-8562.6,0.00014506,2]
[425139338,1781548246000,-308.13,0.00014596,2]
[425139328,1781548246000,-500.0,0.00014513,2]
[425139300,1781548246000,-150.0,0.00014235,2]
[425139323,1781548246000,-308.13,0.00014443,2]
[425139303,1781548246000,-321.03275511,0.00014242,2]
[425139302,1781548246000,-150.0,0.0001424,2]
[425139307,1781548246000,-308.13,0.00014266,2]
[425139301,1781548246000,-500.0,0.00014239,2]
[425139309,1781548246000,-150.0,0.00014275,2]
[425139304,1781548246000,-150.0,0.00014248,2]
[425139306,1781548246000,-250.40554899,0.00014257,2]
[425139305,1781548246000,-8562.6,0.00014251,2]
[425139319,1781548246000,-8562.6,0.00014386,2]
[425139321,1781548246000,-308.13,0.00014401,2]
[425139318,1781548246000,-305.02,0.00014378,2]
[425139310,1781548246000,-8562.6,0.00014298,2]
[425139326,1781548246000,-308.13,0.00014483,2]
[425139325,1781548246000,-8562.6,0.00014467,2]
[425139311,1781548246000,-150.0,0.00014301,2]
[425139324,1781548246000,-199.5,0.00014447,2]
[425139322,1781548246000,-8562.6,0.00014427,2]
[425139317,1781548246000,-308.13,0.00014358,2]
[425139315,1781548246000,-8562.6,0.00014343,2]
[425139313,1781548246000,-308.13,0.00014313,2]
[425139314,1781548246000,-150.0,0.00014315,2]
[425139320,1781548246000,-151.0,0.0001439,2]
[425139312,1781548246000,-3532.10999999,0.00014312,2]
[425139316,1781548246000,-150.0,0.00014355,2]
[425139391,1781548247000,-439.0,0.00014931,2]
[425139398,1781548247000,-439.0,0.00014983,2]
[425139396,1781548247000,-8796.224767,0.0001496,2]
[425139397,1781548247000,-459.49374292,0.0001496,2]
[425139392,1781548247000,-500.0,0.00014932,2]
[425139394,1781548247000,-151.0,0.00014957,2]
[425139389,1781548247000,-2757.26991439,0.000149,2]
[425139390,1781548247000,-439.0,0.00014923,2]
[425139388,1781548247000,-1836.40762781,0.000149,2]
[425139387,1781548247000,-8152.88169685,0.000149,2]
[425139402,1781548247000,-151.0,0.00014997,2]
[425139393,1781548247000,-187.0,0.0001495,2]
[425139406,1781548247000,-429.19083314,0.00015,2]
[425139410,1781548247000,-500.0,0.00015061,2]
[425139404,1781548247000,-1465346.65008573,0.00015,2]
[425139403,1781548247000,-19887.1,0.00014999,2]
[425139400,1781548247000,-339.35741143,0.0001499,2]
[425139401,1781548247000,-151.0,0.00014996,2]
[425139405,1781548247000,-3561729.05969965,0.00015,2]
[425139413,1781548247000,-533.04,0.000152,2]
[425139416,1781548247000,-1555.5,0.0001541,2]
[425139417,1781548247000,-500.0,0.00015608,2]
[425139409,1781548247000,-689630.92659441,0.00015,2]
[425139412,1781548247000,-900.0,0.00015068,2]
[425139415,1781548247000,-500.0,0.00015335,2]
[425139395,1781548247000,-448097.829443,0.0001496,2]
[425139399,1781548247000,-3000.0,0.0001499,2]
[425139386,1781548247000,-25000.0,0.000149,3]
[425139356,1781548247000,-350.0,0.000148,2]
[425139384,1781548247000,-151.0,0.00014897,2]
[425139408,1781548247000,-2836984.61740529,0.00015,2]
[425139358,1781548247000,-300.0,0.00014802,2]
[425139357,1781548247000,-151.0,0.000148,2]
[425139370,1781548247000,-700.0,0.00014839,2]
[425139360,1781548247000,-300.0,0.00014802,2]
[425139359,1781548247000,-300.0,0.00014802,2]
[425139362,1781548247000,-300.0,0.00014811,2]
[425139371,1781548247000,-25000.0,0.00014847,3]
[425139364,1781548247000,-25000.0,0.00014812,3]
[425139363,1781548247000,-300.0,0.00014811,2]
[425139367,1781548247000,-25000.0,0.00014821,3]
[425139368,1781548247000,-25000.0,0.0001483,3]
[425139361,1781548247000,-25000.0,0.00014803,3]
[425139365,1781548247000,-439.0,0.00014812,2]
[425139369,1781548247000,-25000.0,0.00014838,3]
[425139366,1781548247000,-300.0,0.0001482,2]
[425139372,1781548247000,-151.0,0.00014853,2]
[425139375,1781548247000,-25000.0,0.00014865,3]
[425139373,1781548247000,-25000.0,0.00014856,3]
[425139377,1781548247000,-25000.0,0.00014874,3]
[425139374,1781548247000,-1500.0,0.00014862,2]
[425139383,1781548247000,-25000.0,0.00014891,3]
[425139376,1781548247000,-25000.0,0.00014865,3]
[425139378,1781548247000,-25000.0,0.00014874,3]
[425139380,1781548247000,-25000.0,0.00014882,3]
[425139381,1781548247000,-25000.0,0.00014882,3]
[425139379,1781548247000,-200.0,0.0001488,2]
[425139385,1781548247000,-25000.0,0.000149,3]
[425139411,1781548247000,-150.0,0.00015068,2]
[425139382,1781548247000,-25000.0,0.00014891,3]
[425139414,1781548247000,-317.56,0.000152,2]
[425139443,1781548247000,-151.0,0.00016438,2]
[425139451,1781548247000,-926.5054416,0.000167,2]
[425139446,1781548247000,-1373.4388567,0.00016458,2]
[425139448,1781548247000,-926.5054416,0.000165,2]
[425139473,1781548247000,-279.169218,0.00017672,2]
[425139453,1781548247000,-500.0,0.00016704,2]
[425139450,1781548247000,-1672.7364795,0.00016506,2]
[425139466,1781548247000,-1157.93,0.00017424,2]
[425139456,1781548247000,-7526.63891281,0.000168,2]
[425139457,1781548247000,-1194.89,0.00016931,2]
[425139455,1781548247000,-926.5054416,0.000168,2]
[425139467,1781548247000,-7526.63891281,0.000175,2]
[425139463,1781548247000,-7526.63891281,0.000173,2]
[425139460,1781548247000,-1734.62772924,0.00017054,2]
[425139464,1781548247000,-317.56,0.000173,2]
[425139459,1781548247000,-7526.63891281,0.00017,2]
[425139462,1781548247000,-279.169218,0.00017283,2]
[425139458,1781548247000,-264.86153661,0.00016978,2]
[425139461,1781548247000,-7526.63891281,0.000172,2]
[425139465,1781548247000,-279.169218,0.00017413,2]
[425139469,1781548247000,-152.0,0.00017578,2]
[425139474,1781548247000,-4556.0,0.00017698,2]
[425139475,1781548247000,-7526.63891281,0.000177,2]
[425139470,1781548247000,-151.0,0.00017578,2]
[425139472,1781548247000,-2069.0,0.00017608,2]
[425139468,1781548247000,-279.169218,0.00017543,2]
[425139418,1781548247000,-6078.0,0.00015761,2]
[425139454,1781548247000,-179.81,0.00016767,2]
[425139452,1781548247000,-7526.63891281,0.000167,2]
[425139471,1781548247000,-1798.80895522,0.00017602,2]
[425139445,1781548247000,-230.8,0.00016438,2]
[425139407,1781548247000,-3471.46584316,0.00015,3]
[425139419,1781548247000,-3558.0,0.00015761,2]
[425139421,1781548247000,-500.0,0.00015882,2]
[425139423,1781548247000,-300.0,0.00016,2]
[425139428,1781548247000,-506.4,0.0001615,2]
[425139424,1781548247000,-151.66797188,0.00016,2]
[425139422,1781548247000,-1613.0535,0.00015958,2]
[425139449,1781548247000,-7526.63891281,0.000165,2]
[425139426,1781548247000,-190.56126992,0.00016022,2]
[425139425,1781548247000,-3620.0,0.00016009,2]
[425139427,1781548247000,-151.66797188,0.000161,2]
[425139430,1781548247000,-926.5054416,0.000162,2]
[425139429,1781548247000,-500.0,0.00016156,2]
[425139420,1781548247000,-2500.0,0.00015784,2]
[425139441,1781548247000,-197.61259417,0.00016438,2]
[425139447,1781548247000,-3200.0,0.00016499,2]
[425139431,1781548247000,-7526.63891281,0.000162,2]
[425139444,1781548247000,-212.633182,0.00016438,2]
[425139440,1781548247000,-1231.84,0.00016438,2]
[425139439,1781548247000,-564.3,0.00016438,2]
[425139435,1781548247000,-1089.38,0.000164,2]
[425139438,1781548247000,-520.59,0.00016438,2]
[425139434,1781548247000,-7526.63891281,0.000163,2]
[425139437,1781548247000,-500.0,0.0001643,2]
[425139433,1781548247000,-926.5054416,0.000163,2]
[425139442,1781548247000,-900.0,0.00016438,2]
[425139432,1781548247000,-151.66797188,0.000162,2]
[425139436,1781548247000,-153.81,0.000164,2]
[425139509,1781548248000,-5428.52,0.00018533,5]
[425139515,1781548248000,-8725.03700257,0.000187,2]
[425139514,1781548248000,-1421.24236,0.000187,2]
[425139517,1781548248000,-6078.0,0.00018761,2]
[425139511,1781548248000,-3444.0,0.0001856,2]
[425139507,1781548248000,-521.9,0.00018533,2]
[425139512,1781548248000,-506.39394449,0.00018602,2]
[425139513,1781548248000,-1934.38338736,0.00018698,2]
[425139510,1781548248000,-84578.18,0.00018533,2]
[425139518,1781548248000,-3558.0,0.00018761,2]
[425139508,1781548248000,-9999.99,0.00018533,2]
[425139516,1781548248000,-278.02,0.0001872,2]
[425139531,1781548248000,-469.301051,0.00019178,2]
[425139530,1781548248000,-209.129083,0.00019178,2]
[425139523,1781548248000,-151.0,0.00019178,2]
[425139522,1781548248000,-151.0,0.00019178,2]
[425139525,1781548248000,-151.0,0.00019178,2]
[425139521,1781548248000,-427.325373,0.00019111,7]
[425139529,1781548248000,-151.0,0.00019178,2]
[425139519,1781548248000,-8725.03700257,0.000189,2]
[425139526,1781548248000,-151.0,0.00019178,2]
[425139524,1781548248000,-151.0,0.00019178,2]
[425139528,1781548248000,-151.0,0.00019178,2]
[425139520,1781548248000,-8725.03700257,0.000191,2]
[425139503,1781548248000,-999.99,0.00018533,2]
[425139527,1781548248000,-151.0,0.00019178,2]
[425139498,1781548248000,-1421.24236,0.000184,2]
[425139486,1781548248000,-1275.0,0.00017867,2]
[425139502,1781548248000,-8725.03700257,0.000185,2]
[425139534,1781548248000,-469.301051,0.00019178,2]
[425139480,1781548248000,-29999.99,0.00017728,2]
[425139477,1781548248000,-9999.99,0.00017728,2]
[425139479,1781548248000,-7396.81,0.00017728,2]
[425139476,1781548248000,-11331.93,0.00017728,2]
[425139478,1781548248000,-1219.5,0.00017728,2]
[425139482,1781548248000,-306.455632,0.00017802,2]
[425139492,1781548248000,-1120.98,0.00018082,2]
[425139493,1781548248000,-275.652708,0.00018139,7]
[425139483,1781548248000,-271.311213,0.00017815,7]
[425139485,1781548248000,-1367.636,0.00017867,2]
[425139484,1781548248000,-383.0,0.00017867,2]
[425139499,1781548248000,-8725.03700257,0.000184,2]
[425139488,1781548248000,-1421.24236,0.00018,2]
[425139487,1781548248000,-1228.0,0.00017867,2]
[425139491,1781548248000,-500.0,0.00018,2]
[425139490,1781548248000,-350.0,0.00018,2]
[425139495,1781548248000,-1421.24236,0.000182,2]
[425139505,1781548248000,-3230.95,0.00018533,2]
[425139506,1781548248000,-9999.99,0.00018533,2]
[425139494,1781548248000,-1865.36488656,0.0001815,2]
[425139497,1781548248000,-89896.17,0.00018356,2]
[425139504,1781548248000,-9999.99,0.00018533,2]
[425139500,1781548248000,-564.3,0.0001841,2]
[425139501,1781548248000,-1421.24236,0.000185,2]
[425139496,1781548248000,-8725.03700257,0.000182,2]
[425139489,1781548248000,-8725.03700257,0.00018,2]
[425139535,1781548248000,-469.301051,0.00019178,2]
[425139481,1781548248000,-279.169219,0.00017802,2]
[425139538,1781548248000,-469.301051,0.00019178,2]
[425139569,1781548248000,-151.0,0.00019246,2]
[425139568,1781548248000,-1148.61238259,0.00019246,2]
[425139572,1781548248000,-1235.18214925,0.00019246,2]
[425139570,1781548248000,-1191.11104074,0.00019246,2]
[425139573,1781548248000,-151.0,0.00019246,2]
[425139574,1781548248000,-1280.88388877,0.00019246,2]
[425139576,1781548248000,-151.0,0.00019246,2]
[425139571,1781548248000,-186.85568836,0.00019246,2]
[425139575,1781548248000,-500.0,0.00019246,2]
[425139577,1781548248000,-151.0,0.00019246,2]
[425139578,1781548248000,-1328.27659266,0.00019246,2]
[425139587,1781548248000,-500.0,0.00019246,2]
[425139566,1781548248000,-578.20924308,0.00019246,2]
[425139589,1781548248000,-201.932861,0.00019246,2]
[425139579,1781548248000,-695.39793187,0.00019246,2]
[425139582,1781548248000,-1377.42282658,0.00019246,2]
[425139580,1781548248000,-500.0,0.00019246,2]
[425139581,1781548248000,-151.0,0.00019246,2]
[425139585,1781548248000,-203.94557654,0.00019246,2]
[425139592,1781548248000,-151.0,0.00019246,2]
[425139586,1781548248000,-1428.38747117,0.00019246,2]
[425139583,1781548248000,-500.0,0.00019246,2]
[425139584,1781548248000,-151.0,0.00019246,2]
[425139590,1781548248000,-1481.2378076,0.00019246,2]
[425139591,1781548248000,-500.0,0.00019246,2]
[425139540,1781548248000,-469.301051,0.00019178,2]
[425139588,1781548248000,-151.0,0.00019246,2]
[425139561,1781548248000,-201.93286098,0.00019246,2]
[425139567,1781548248000,-155.040601,0.00019246,2]
[425139562,1781548248000,-151.0,0.00019246,2]
[425139532,1781548248000,-469.301051,0.00019178,2]
[425139563,1781548248000,-1107.63007,0.00019246,2]
[425139537,1781548248000,-469.301051,0.00019178,2]
[425139533,1781548248000,-469.301051,0.00019178,2]
[425139539,1781548248000,-469.301051,0.00019178,2]
[425139541,1781548248000,-469.301051,0.00019178,2]
[425139543,1781548248000,-469.301051,0.00019178,2]
[425139544,1781548248000,-469.301051,0.00019178,2]
[425139553,1781548248000,-151.0,0.00019246,2]
[425139545,1781548248000,-469.301051,0.00019178,2]
[425139542,1781548248000,-469.301051,0.00019178,2]
[425139554,1781548248000,-201.93286099,0.00019246,2]
[425139547,1781548248000,-469.301051,0.00019178,2]
[425139546,1781548248000,-469.301051,0.00019178,2]
[425139536,1781548248000,-469.301051,0.00019178,2]
[425139550,1781548248000,-469.301047,0.00019178,2]
[425139549,1781548248000,-469.301051,0.00019178,2]
[425139560,1781548248000,-1068.11,0.00019246,2]
[425139558,1781548248000,-1030.0,0.00019246,2]
[425139565,1781548248000,-151.0,0.00019246,2]
[425139559,1781548248000,-151.0,0.00019246,2]
[425139556,1781548248000,-1112.1608346,0.00019246,2]
[425139557,1781548248000,-154.67963625,0.00019246,2]
[425139555,1781548248000,-200.0,0.00019246,2]
[425139551,1781548248000,-157.29309396,0.00019246,2]
[425139552,1781548248000,-151.28403746,0.00019246,2]
[425139548,1781548248000,-469.301051,0.00019178,2]
[425139564,1781548248000,-174.61919141,0.00019246,2]
[425139633,1781548249000,-151.0,0.00019246,2]
[425139628,1781548249000,-151.0,0.00019246,2]
[425139632,1781548249000,-500.0,0.00019246,2]
[425139624,1781548249000,-500.0,0.00019246,2]
[425139620,1781548249000,-151.0,0.00019246,2]
[425139626,1781548249000,-500.0,0.00019246,2]
[425139627,1781548249000,-500.0,0.00019246,2]
[425139622,1781548249000,-152.0,0.00019246,2]
[425139643,1781548249000,-500.0,0.00019246,2]
[425139623,1781548249000,-151.0,0.00019246,2]
[425139625,1781548249000,-151.0,0.00019246,2]
[425139634,1781548249000,-152.0,0.00019246,2]
[425139641,1781548249000,-152.0,0.00019246,2]
[425139638,1781548249000,-151.0,0.00019246,2]
[425139635,1781548249000,-151.0,0.00019246,2]
[425139639,1781548249000,-500.0,0.00019246,2]
[425139636,1781548249000,-152.0,0.00019246,2]
[425139640,1781548249000,-151.0,0.00019246,2]
[425139637,1781548249000,-2005.9555727,0.00019246,2]
[425139644,1781548249000,-151.0,0.00019246,2]
[425139645,1781548249000,-152.0,0.00019246,2]
[425139647,1781548249000,-500.0,0.00019246,2]
[425139646,1781548249000,-151.0,0.00019246,2]
[425139648,1781548249000,-151.0,0.00019246,2]
[425139631,1781548249000,-500.0,0.00019246,2]
[425139642,1781548249000,-151.0,0.00019246,2]
[425139630,1781548249000,-151.0,0.00019246,2]
[425139594,1781548249000,-151.0,0.00019246,2]
[425139629,1781548249000,-152.0,0.00019246,2]
[425139655,1781548249000,-317.56,0.000193,2]
[425139593,1781548249000,-500.0,0.00019246,2]
[425139595,1781548249000,-151.0,0.00019246,2]
[425139596,1781548249000,-1536.04360648,0.00019246,2]
[425139597,1781548249000,-201.93286099,0.00019246,2]
[425139606,1781548249000,-152.0,0.00019246,2]
[425139599,1781548249000,-500.0,0.00019246,2]
[425139601,1781548249000,-151.0,0.00019246,2]
[425139602,1781548249000,-151.0,0.00019246,2]
[425139598,1781548249000,-500.0,0.00019246,2]
[425139607,1781548249000,-151.0,0.00019246,2]
[425139604,1781548249000,-498.19686534,0.00019246,2]
[425139603,1781548249000,-500.0,0.00019246,2]
[425139600,1781548249000,-1592.87721992,0.00019246,2]
[425139605,1781548249000,-500.0,0.00019246,2]
[425139608,1781548249000,-194.61006583,0.00019246,2]
[425139610,1781548249000,-500.0,0.00019246,2]
[425139613,1781548249000,-151.0,0.00019246,2]
[425139611,1781548249000,-500.0,0.00019246,2]
[425139609,1781548249000,-151.0,0.00019246,2]
[425139619,1781548249000,-500.0,0.00019246,2]
[425139612,1781548249000,-152.0,0.00019246,2]
[425139618,1781548249000,-151.0,0.00019246,2]
[425139615,1781548249000,-500.0,0.00019246,2]
[425139614,1781548249000,-151.0,0.00019246,2]
[425139617,1781548249000,-152.0,0.00019246,2]
[425139616,1781548249000,-500.0,0.00019246,2]
[425139621,1781548249000,-500.0,0.00019246,2]
[425139652,1781548249000,-151.0,0.00019246,2]
[425139653,1781548249000,-152.0,0.00019246,2]
[425139656,1781548249000,-151.28403746,0.00019301,2]
[425139685,1781548249000,-5264.0,0.000195,2]
[425139684,1781548249000,-8796.224767,0.00019482,2]